[Event "Late-Titled-Tuesday-Blitz-January-16-2024"]
[Site "Chess.com"]
[Date "2024.01.16"]
[Round "11"]
[White "AntonSmirnov"]
[Black "dropstoneDP"]
[Result "0-1"]
[WhiteElo "2962"]
[BlackElo "3024"]
[TimeControl "180+1"]
[EndTime "16:07:30 PST"]
[Termination "dropstoneDP won by resignation"]

1. e4 {[%clk 0:02:56.7]} 1... e5 {[%clk 0:02:59.9]} 2. Nf3 {[%clk 0:02:54]} 2...
Nf6 {[%clk 0:03:00.4]} 3. Nxe5 {[%clk 0:02:53.6]} 3... d6 {[%clk 0:03:00.6]} 4.
Nf3 {[%clk 0:02:54]} 4... Nxe4 {[%clk 0:03:00.9]} 5. Nc3 {[%clk 0:02:52.7]} 5...
Nxc3 {[%clk 0:03:00.7]} 6. dxc3 {[%clk 0:02:53.6]} 6... Be7 {[%clk 0:03:01.5]}
7. Bf4 {[%clk 0:02:53.8]} 7... O-O {[%clk 0:03:02.1]} 8. Qd2 {[%clk 0:02:54.1]}
8... Nd7 {[%clk 0:03:01.8]} 9. O-O-O {[%clk 0:02:53.7]} 9... Re8 {[%clk
0:03:02.4]} 10. h4 {[%clk 0:02:52.6]} 10... h6 {[%clk 0:03:01.8]} 11. Bc4 {[%clk
0:02:45.6]} 11... Nb6 {[%clk 0:03:01.5]} 12. Bd3 {[%clk 0:02:37.1]} 12... Bf8
{[%clk 0:02:51.4]} 13. Rde1 {[%clk 0:02:36.6]} 13... Bg4 {[%clk 0:02:49.4]} 14.
Rxe8 {[%clk 0:02:32.4]} 14... Qxe8 {[%clk 0:02:50.3]} 15. Nd4 {[%clk 0:02:32.2]}
15... c5 {[%clk 0:02:48.4]} 16. Nb5 {[%clk 0:01:54.5]} 16... c4 {[%clk
0:02:45.7]} 17. Nc7 {[%clk 0:01:45.6]} 17... Qa4 {[%clk 0:02:45.1]} 18. Nxa8
{[%clk 0:01:40.6]} 18... Qxa2 {[%clk 0:02:43.9]} 19. Qe1 {[%clk 0:01:39]} 19...
Na4 {[%clk 0:02:31.6]} 20. Kd2 {[%clk 0:01:30.9]} 20... cxd3 {[%clk 0:02:25.6]}
21. Qb1 {[%clk 0:00:45.4]} 21... Qc4 {[%clk 0:02:08.5]} 22. Be3 {[%clk
0:00:45.2]} 22... Qc6 {[%clk 0:01:43.3]} 23. cxd3 {[%clk 0:00:21.1]} 23... b5
{[%clk 0:01:43.3]} 24. f3 {[%clk 0:00:16.3]} 24... Be6 {[%clk 0:01:41.6]} 25.
Bxa7 {[%clk 0:00:13.1]} 25... Qxa8 {[%clk 0:01:40.3]} 26. Bd4 {[%clk 0:00:13.8]}
26... Nc5 {[%clk 0:01:39.9]} 27. Ke2 {[%clk 0:00:12.8]} 27... Nxd3 {[%clk
0:01:37.3]} 28. Rd1 {[%clk 0:00:08.3]} 28... Nf4+ {[%clk 0:01:37.1]} 29. Kf2
{[%clk 0:00:08.2]} 29... Qd8 {[%clk 0:01:32.3]} 30. g3 {[%clk 0:00:07.4]} 30...
Nd5 {[%clk 0:01:32]} 31. Qe4 {[%clk 0:00:07.1]} 31... Qc8 {[%clk 0:01:29.1]} 32.
Re1 {[%clk 0:00:05.7]} 32... b4 {[%clk 0:01:27.1]} 33. cxb4 {[%clk 0:00:03.4]}
33... Nxb4 {[%clk 0:01:27.6]} 34. Bc3 {[%clk 0:00:03.7]} 34... Qc5+ {[%clk
0:01:24.2]} 35. Kg2 {[%clk 0:00:04]} 35... Nd5 {[%clk 0:01:22.8]} 36. Bd4 {[%clk
0:00:04.5]} 36... Qb5 {[%clk 0:01:18.4]} 37. Qe2 {[%clk 0:00:04]} 37... Qb4
{[%clk 0:01:18.5]} 38. Rd1 {[%clk 0:00:03.8]} 38... Qb3 {[%clk 0:01:12.5]} 39.
Qd2 {[%clk 0:00:03.3]} 39... Ne7 {[%clk 0:01:11.4]} 40. Rc1 {[%clk 0:00:02.6]}
40... Nf5 {[%clk 0:01:10.9]} 41. Bf2 {[%clk 0:00:02.5]} 41... Qb7 {[%clk
0:01:04]} 42. g4 {[%clk 0:00:02.6]} 42... Ne7 {[%clk 0:01:04.1]} 43. Kg3 {[%clk
0:00:02.9]} 43... d5 {[%clk 0:01:03]} 44. b4 {[%clk 0:00:03]} 44... Ng6 {[%clk
0:00:57.8]} 45. Bc5 {[%clk 0:00:03]} 45... Qb8+ {[%clk 0:00:37.3]} 46. f4 {[%clk
0:00:03.5]} 46... Ne7 {[%clk 0:00:38]} 47. Qe3 {[%clk 0:00:03.1]} 47... h5
{[%clk 0:00:36.7]} 48. Rf1 {[%clk 0:00:02.3]} 48... hxg4 {[%clk 0:00:35.8]} 49.
Qd3 {[%clk 0:00:02.3]} 49... Nf5+ {[%clk 0:00:35.8]} 50. Kh2 {[%clk 0:00:02.9]}
50... d4 {[%clk 0:00:34.8]} 51. Bxf8 {[%clk 0:00:02.4]} 51... Qxf8 {[%clk
0:00:34.6]} 52. b5 {[%clk 0:00:03]} 52... Qe7 {[%clk 0:00:31.3]} 53. Kg1 {[%clk
0:00:03]} 53... Qxh4 {[%clk 0:00:28.8]} 54. b6 {[%clk 0:00:03.5]} 54... Ne3
{[%clk 0:00:29.3]} 55. Rf2 {[%clk 0:00:03.6]} 55... Qg3+ {[%clk 0:00:29.4]} 56.
Kh1 {[%clk 0:00:04.1]} 56... Bd5+ {[%clk 0:00:29.7]} 0-1

[Event "Late-Titled-Tuesday-Blitz-January-16-2024"]
[Site "Chess.com"]
[Date "2024.01.16"]
[Round "11"]
[White "tptagain"]
[Black "LikeWater"]
[Result "0-1"]
[WhiteElo "2939"]
[BlackElo "2815"]
[TimeControl "180+1"]
[EndTime "16:07:35 PST"]
[Termination "LikeWater won by resignation"]

1. Nf3 {[%clk 0:03:00.9]} 1... d5 {[%clk 0:02:56.7]} 2. d4 {[%clk 0:03:01.4]}
2... e6 {[%clk 0:02:56]} 3. Bg5 {[%clk 0:03:00.6]} 3... Be7 {[%clk 0:02:49.4]}
4. Bxe7 {[%clk 0:03:00.6]} 4... Nxe7 {[%clk 0:02:49.6]} 5. e3 {[%clk 0:03:00.4]}
5... O-O {[%clk 0:02:48.4]} 6. Bd3 {[%clk 0:02:58.8]} 6... c5 {[%clk 0:02:47.8]}
7. dxc5 {[%clk 0:02:58.7]} 7... Qa5+ {[%clk 0:02:47.1]} 8. Nbd2 {[%clk
0:02:57.4]} 8... Qxc5 {[%clk 0:02:47]} 9. O-O {[%clk 0:02:53.8]} 9... Nbc6
{[%clk 0:02:46.6]} 10. a3 {[%clk 0:02:54.3]} 10... e5 {[%clk 0:02:43.3]} 11. b4
{[%clk 0:02:54.2]} 11... Qd6 {[%clk 0:02:38.7]} 12. e4 {[%clk 0:02:39.6]} 12...
a6 {[%clk 0:02:15.6]} 13. c4 {[%clk 0:02:33.4]} 13... d4 {[%clk 0:02:10.1]} 14.
c5 {[%clk 0:02:33.6]} 14... Qh6 {[%clk 0:02:03.3]} 15. Nc4 {[%clk 0:02:31.2]}
15... Ng6 {[%clk 0:01:58.8]} 16. g3 {[%clk 0:02:27.6]} 16... Bg4 {[%clk
0:01:49.7]} 17. Be2 {[%clk 0:02:26.9]} 17... Qh5 {[%clk 0:01:39.8]} 18. Nxd4
{[%clk 0:02:20.2]} 18... Nxd4 {[%clk 0:01:23.4]} 19. Bxg4 {[%clk 0:02:20]} 19...
Qg5 {[%clk 0:01:24.3]} 20. h4 {[%clk 0:02:14.3]} 20... Nxh4 {[%clk 0:01:08.5]}
21. gxh4 {[%clk 0:02:14.1]} 21... Qxh4 {[%clk 0:01:09.4]} 22. Nxe5 {[%clk
0:01:43.4]} 22... Rad8 {[%clk 0:00:57.9]} 23. Kg2 {[%clk 0:01:42]} 23... Rfe8
{[%clk 0:00:50.4]} 24. f4 {[%clk 0:01:41.9]} 24... Nf5 {[%clk 0:00:43.7]} 25.
Bxf5 {[%clk 0:01:34.1]} 25... Rxd1 {[%clk 0:00:42.8]} 26. Raxd1 {[%clk
0:01:34.8]} 26... g6 {[%clk 0:00:37]} 27. Bh3 {[%clk 0:01:28.4]} 27... f6 {[%clk
0:00:31.6]} 28. Ng4 {[%clk 0:00:51.9]} 28... Rxe4 {[%clk 0:00:22]} 29. Rd8+
{[%clk 0:00:46.4]} 29... Kf7 {[%clk 0:00:20.5]} 30. Rf2 {[%clk 0:00:20.6]} 30...
h5 {[%clk 0:00:15.9]} 31. Rd7+ {[%clk 0:00:18.6]} 31... Ke8 {[%clk 0:00:12]} 32.
Nh6 {[%clk 0:00:17.8]} 32... Rxf4 {[%clk 0:00:10.8]} 33. Re2+ {[%clk 0:00:18]}
33... Re4 {[%clk 0:00:11.2]} 34. Red2 {[%clk 0:00:10.7]} 34... Qg5+ {[%clk
0:00:10.7]} 35. Kh2 {[%clk 0:00:10.9]} 35... Qf4+ {[%clk 0:00:08.6]} 36. Kg2
{[%clk 0:00:10.4]} 36... Qg5+ {[%clk 0:00:07.9]} 37. Kh2 {[%clk 0:00:09]} 37...
Qe5+ {[%clk 0:00:07.3]} 38. Kg1 {[%clk 0:00:08.2]} 38... Re1+ {[%clk 0:00:07.2]}
39. Bf1 {[%clk 0:00:08.2]} 39... Qg3+ {[%clk 0:00:07.2]} 40. Rg2 {[%clk
0:00:08.8]} 40... Qe3+ {[%clk 0:00:07.2]} 41. Rf2 {[%clk 0:00:08.8]} 41... Qg3+
{[%clk 0:00:05.6]} 42. Rg2 {[%clk 0:00:08.9]} 42... Qe3+ {[%clk 0:00:05.9]} 43.
Rf2 {[%clk 0:00:09.4]} 43... Kxd7 {[%clk 0:00:05.5]} 44. Ng8 {[%clk 0:00:09.7]}
44... Qg3+ {[%clk 0:00:03.2]} 45. Rg2 {[%clk 0:00:10.2]} 45... Qe3+ {[%clk
0:00:03.4]} 46. Rf2 {[%clk 0:00:11]} 46... Ke6 {[%clk 0:00:03.1]} 47. Nxf6
{[%clk 0:00:10.8]} 47... Qg3+ {[%clk 0:00:02.4]} 48. Rg2 {[%clk 0:00:11.1]}
48... Qxg2+ {[%clk 0:00:02.9]} 49. Kxg2 {[%clk 0:00:11.5]} 49... Kxf6 {[%clk
0:00:03.8]} 50. a4 {[%clk 0:00:11.5]} 50... Rb1 {[%clk 0:00:03.9]} 51. b5 {[%clk
0:00:11.9]} 51... axb5 {[%clk 0:00:04.8]} 52. axb5 {[%clk 0:00:12.5]} 52... Rc1
{[%clk 0:00:05.2]} 53. Kf3 {[%clk 0:00:07.9]} 53... Rxc5 {[%clk 0:00:05.1]} 54.
Ke4 {[%clk 0:00:08.6]} 54... Re5+ {[%clk 0:00:05.4]} 55. Kd4 {[%clk 0:00:09]}
55... b6 {[%clk 0:00:05.4]} 0-1

[Event "Late-Titled-Tuesday-Blitz-January-16-2024"]
[Site "Chess.com"]
[Date "2024.01.16"]
[Round "11"]
[White "FredddieCroderg"]
[Black "ccccvhhhj"]
[Result "0-1"]
[WhiteElo "2373"]
[BlackElo "2518"]
[TimeControl "180+1"]
[EndTime "16:08:02 PST"]
[Termination "ccccvhhhj won by checkmate"]

1. e4 {[%clk 0:02:33.8]} 1... e6 {[%clk 0:02:59.9]} 2. d4 {[%clk 0:02:32.2]}
2... d5 {[%clk 0:03:00.8]} 3. exd5 {[%clk 0:02:31.3]} 3... exd5 {[%clk
0:03:01.7]} 4. Bd3 {[%clk 0:02:30.9]} 4... Nf6 {[%clk 0:03:01]} 5. Nf3 {[%clk
0:02:31.3]} 5... Bg4 {[%clk 0:03:00.9]} 6. O-O {[%clk 0:02:31.7]} 6... Be7
{[%clk 0:03:00.8]} 7. c3 {[%clk 0:02:31.7]} 7... O-O {[%clk 0:03:00.7]} 8. Bg5
{[%clk 0:02:31.6]} 8... c6 {[%clk 0:03:00.8]} 9. Nbd2 {[%clk 0:02:31.4]} 9...
Nbd7 {[%clk 0:03:01.1]} 10. Qc2 {[%clk 0:02:31.4]} 10... Bh5 {[%clk 0:03:00.1]}
11. Bh4 {[%clk 0:02:31.2]} 11... Re8 {[%clk 0:02:56.9]} 12. Rfe1 {[%clk
0:02:31.2]} 12... Bg6 {[%clk 0:02:57]} 13. Bxg6 {[%clk 0:02:29.3]} 13... hxg6
{[%clk 0:02:57.9]} 14. Nb3 {[%clk 0:02:26]} 14... Bd6 {[%clk 0:02:56.4]} 15. Bg3
{[%clk 0:02:23.5]} 15... Bxg3 {[%clk 0:02:54.4]} 16. hxg3 {[%clk 0:02:22.9]}
16... Ne4 {[%clk 0:02:55.1]} 17. Nfd2 {[%clk 0:02:20.1]} 17... Ndf6 {[%clk
0:02:46.1]} 18. Nxe4 {[%clk 0:02:19.5]} 18... Nxe4 {[%clk 0:02:36.9]} 19. Nd2
{[%clk 0:02:18.2]} 19... Nd6 {[%clk 0:02:27.1]} 20. Kf1 {[%clk 0:02:12]} 20...
Qg5 {[%clk 0:02:23.3]} 21. Rxe8+ {[%clk 0:02:10.5]} 21... Rxe8 {[%clk 0:02:23]}
22. Re1 {[%clk 0:02:09.7]} 22... Rxe1+ {[%clk 0:02:20.8]} 23. Kxe1 {[%clk
0:02:09.5]} 23... Qh5 {[%clk 0:02:21.7]} 24. Qd3 {[%clk 0:02:02.2]} 24... Qh1+
{[%clk 0:02:16.6]} 25. Qf1 {[%clk 0:02:01.7]} 25... Qh5 {[%clk 0:02:15.6]} 26.
Qe2 {[%clk 0:02:00]} 26... Qf5 {[%clk 0:02:11.9]} 27. Qe7 {[%clk 0:01:47.8]}
27... Nb5 {[%clk 0:01:32.1]} 28. Qd8+ {[%clk 0:01:43.3]} 28... Kh7 {[%clk
0:01:31.6]} 29. Qh4+ {[%clk 0:01:42.9]} 29... Kg8 {[%clk 0:01:32.1]} 30. Qd8+
{[%clk 0:01:42.3]} 30... Kh7 {[%clk 0:01:32.2]} 31. Qh4+ {[%clk 0:01:41.8]}
31... Qh5 {[%clk 0:01:32.8]} 32. Qxh5+ {[%clk 0:01:34.1]} 32... gxh5 {[%clk
0:01:33.7]} 33. Ke2 {[%clk 0:01:32.6]} 33... f6 {[%clk 0:01:29.4]} 34. Ke3
{[%clk 0:01:32.2]} 34... Kg6 {[%clk 0:01:29.7]} 35. Nb3 {[%clk 0:01:24.6]} 35...
b6 {[%clk 0:01:28]} 36. Nc1 {[%clk 0:01:24.1]} 36... Nd6 {[%clk 0:01:28.1]} 37.
Nd3 {[%clk 0:01:22.9]} 37... Kf5 {[%clk 0:01:25.5]} 38. Nb4 {[%clk 0:01:14.9]}
38... Nc4+ {[%clk 0:01:21.8]} 39. Kf3 {[%clk 0:01:15]} 39... Nxb2 {[%clk
0:01:19.9]} 40. Nxc6 {[%clk 0:01:15]} 40... a5 {[%clk 0:01:16.5]} 41. Ne7+
{[%clk 0:01:03.1]} 41... Ke6 {[%clk 0:01:13.8]} 42. Nc8 {[%clk 0:01:02.8]} 42...
b5 {[%clk 0:01:12.4]} 43. Ke3 {[%clk 0:00:58.5]} 43... Nd1+ {[%clk 0:00:57.5]}
44. Kd2 {[%clk 0:00:48.3]} 44... Nxf2 {[%clk 0:00:57.5]} 45. Na7 {[%clk
0:00:48.6]} 45... Ne4+ {[%clk 0:00:50.7]} 46. Kc2 {[%clk 0:00:46.9]} 46... Nd6
{[%clk 0:00:45.9]} 47. Nc6 {[%clk 0:00:43.7]} 47... a4 {[%clk 0:00:43.7]} 48.
Nb4 {[%clk 0:00:32.1]} 48... g5 {[%clk 0:00:36.6]} 49. Nd3 {[%clk 0:00:26.3]}
49... Kf5 {[%clk 0:00:25]} 50. Kb2 {[%clk 0:00:25.5]} 50... Kg4 {[%clk
0:00:23.6]} 51. Ka3 {[%clk 0:00:25.7]} 51... Kxg3 {[%clk 0:00:23.2]} 52. Kb4
{[%clk 0:00:26.3]} 52... Kxg2 {[%clk 0:00:21.6]} 53. Kc5 {[%clk 0:00:26.4]}
53... Ne4+ {[%clk 0:00:20]} 54. Kxd5 {[%clk 0:00:26.3]} 54... Nxc3+ {[%clk
0:00:20.5]} 55. Ke6 {[%clk 0:00:26.4]} 55... Ne4 {[%clk 0:00:17.1]} 56. Kf5
{[%clk 0:00:25.4]} 56... Nc3 {[%clk 0:00:10.4]} 57. Kxf6 {[%clk 0:00:23.5]}
57... g4 {[%clk 0:00:11.1]} 58. Nf4+ {[%clk 0:00:22.9]} 58... Kf3 {[%clk
0:00:10.6]} 59. Nxh5 {[%clk 0:00:22.8]} 59... g3 {[%clk 0:00:11.3]} 60. Nxg3
{[%clk 0:00:15.8]} 60... Kxg3 {[%clk 0:00:12.2]} 61. Ke5 {[%clk 0:00:15.6]}
61... b4 {[%clk 0:00:12.4]} 62. d5 {[%clk 0:00:15]} 62... Nxd5 {[%clk
0:00:12.1]} 63. Kd4 {[%clk 0:00:13.9]} 63... b3 {[%clk 0:00:13]} 64. a3 {[%clk
0:00:13]} 64... Nb6 {[%clk 0:00:10.8]} 65. Kc3 {[%clk 0:00:12.6]} 65... Kf4
{[%clk 0:00:11.3]} 66. Kb2 {[%clk 0:00:12.5]} 66... Ke5 {[%clk 0:00:11.7]} 67.
Ka1 {[%clk 0:00:12.3]} 67... Kd5 {[%clk 0:00:12.3]} 68. Kb2 {[%clk 0:00:12.7]}
68... Kd4 {[%clk 0:00:12.9]} 69. Kb1 {[%clk 0:00:13]} 69... Kd3 {[%clk
0:00:13.1]} 70. Kb2 {[%clk 0:00:13.2]} 70... Nc4+ {[%clk 0:00:13.4]} 71. Kb1
{[%clk 0:00:13]} 71... Nxa3+ {[%clk 0:00:13.7]} 72. Kb2 {[%clk 0:00:13.3]} 72...
Nc4+ {[%clk 0:00:14]} 73. Kb1 {[%clk 0:00:13.4]} 73... Kc3 {[%clk 0:00:14.2]}
74. Ka1 {[%clk 0:00:14.2]} 74... b2+ {[%clk 0:00:13.9]} 75. Ka2 {[%clk
0:00:14.4]} 75... a3 {[%clk 0:00:10]} 76. Kb1 {[%clk 0:00:14.1]} 76... Nd2+
{[%clk 0:00:10.7]} 77. Ka2 {[%clk 0:00:13.9]} 77... b1=Q+ {[%clk 0:00:11]} 78.
Kxa3 {[%clk 0:00:14.3]} 78... Qb3# {[%clk 0:00:11.6]} 0-1

[Event "Late-Titled-Tuesday-Blitz-January-16-2024"]
[Site "Chess.com"]
[Date "2024.01.16"]
[Round "11"]
[White "AmanteDeMoi"]
[Black "DavidGavrilescu18"]
[Result "1-0"]
[WhiteElo "2602"]
[BlackElo "2770"]
[TimeControl "180+1"]
[EndTime "16:08:11 PST"]
[Termination "AmanteDeMoi won by checkmate"]

1. Nf3 {[%clk 0:03:00.9]} 1... d5 {[%clk 0:02:59]} 2. e3 {[%clk 0:03:01]} 2...
Nf6 {[%clk 0:02:58.5]} 3. b3 {[%clk 0:03:01.3]} 3... c5 {[%clk 0:02:58.5]} 4.
Bb2 {[%clk 0:03:01.8]} 4... Nc6 {[%clk 0:02:57.1]} 5. Be2 {[%clk 0:03:02.3]}
5... d4 {[%clk 0:02:52.2]} 6. O-O {[%clk 0:03:02]} 6... e5 {[%clk 0:02:52.1]} 7.
Bb5 {[%clk 0:03:01.5]} 7... Bd6 {[%clk 0:02:50.6]} 8. exd4 {[%clk 0:02:56.6]}
8... exd4 {[%clk 0:02:51.5]} 9. Re1+ {[%clk 0:02:56.2]} 9... Kf8 {[%clk
0:02:49.5]} 10. Bxc6 {[%clk 0:02:54.9]} 10... bxc6 {[%clk 0:02:49.5]} 11. d3
{[%clk 0:02:53]} 11... h5 {[%clk 0:02:47.9]} 12. Nbd2 {[%clk 0:02:51.6]} 12...
h4 {[%clk 0:02:45.8]} 13. h3 {[%clk 0:02:36.8]} 13... Rh6 {[%clk 0:02:41.5]} 14.
Nc4 {[%clk 0:02:33.8]} 14... Bc7 {[%clk 0:02:26.4]} 15. a4 {[%clk 0:02:28.7]}
15... Qd5 {[%clk 0:02:23.7]} 16. Bc1 {[%clk 0:02:20.5]} 16... Rh5 {[%clk
0:02:12.6]} 17. Qe2 {[%clk 0:02:11.8]} 17... Be6 {[%clk 0:02:12.4]} 18. Nfe5
{[%clk 0:01:28.5]} 18... Re8 {[%clk 0:02:10.1]} 19. f4 {[%clk 0:01:28.5]} 19...
Rf5 {[%clk 0:02:02.6]} 20. Qf2 {[%clk 0:01:24.9]} 20... g5 {[%clk 0:01:58.6]}
21. Nf3 {[%clk 0:01:09.5]} 21... gxf4 {[%clk 0:01:13.5]} 22. Nxh4 {[%clk
0:01:04.8]} 22... Rg5 {[%clk 0:01:13.8]} 23. Bxf4 {[%clk 0:01:01.9]} 23... Bxf4
{[%clk 0:01:14.7]} 24. Qxf4 {[%clk 0:01:02]} 24... Bxh3 {[%clk 0:01:15.2]} 25.
Rxe8+ {[%clk 0:01:00.5]} 25... Nxe8 {[%clk 0:01:16.1]} 26. Kh2 {[%clk
0:00:45.8]} 26... Be6 {[%clk 0:00:54.4]} 27. Rf1 {[%clk 0:00:43.4]} 27... Kg7
{[%clk 0:00:51.1]} 28. Nf3 {[%clk 0:00:33.9]} 28... Rg4 {[%clk 0:00:50.2]} 29.
Qe5+ {[%clk 0:00:32.5]} 29... f6 {[%clk 0:00:49.2]} 30. Qb8 {[%clk 0:00:29.4]}
30... Qh5+ {[%clk 0:00:47.3]} 31. Kg1 {[%clk 0:00:29.4]} 31... Qg6 {[%clk
0:00:45.6]} 32. Qxa7+ {[%clk 0:00:26.5]} 32... Kh6 {[%clk 0:00:45.1]} 33. Rf2
{[%clk 0:00:24.9]} 33... Bd5 {[%clk 0:00:45.6]} 34. Ncd2 {[%clk 0:00:19.6]}
34... Qf5 {[%clk 0:00:33.2]} 35. Qxc5 {[%clk 0:00:18.1]} 35... Ng7 {[%clk
0:00:32.9]} 36. Nxd4 {[%clk 0:00:12.4]} 36... Qg5 {[%clk 0:00:21.2]} 37. N4f3
{[%clk 0:00:12.7]} 37... Qf4 {[%clk 0:00:20]} 38. Qf8 {[%clk 0:00:09.9]} 38...
Kg6 {[%clk 0:00:19.4]} 39. Qc8 {[%clk 0:00:08.4]} 39... Kh7 {[%clk 0:00:17.2]}
40. c4 {[%clk 0:00:08.4]} 40... Bxf3 {[%clk 0:00:16.9]} 41. Nxf3 {[%clk
0:00:09.3]} 41... Rg6 {[%clk 0:00:16.3]} 42. Qh3+ {[%clk 0:00:08.1]} 42... Kg8
{[%clk 0:00:16.1]} 43. Qc8+ {[%clk 0:00:07.8]} 43... Kh7 {[%clk 0:00:16.6]} 44.
Qxc6 {[%clk 0:00:08.7]} 44... Nf5 {[%clk 0:00:15.7]} 45. Qe4 {[%clk 0:00:08.8]}
45... Qc1+ {[%clk 0:00:15.4]} 46. Rf1 {[%clk 0:00:09.1]} 46... Qxf1+ {[%clk
0:00:15]} 47. Kxf1 {[%clk 0:00:10]} 47... Ng3+ {[%clk 0:00:15.7]} 48. Kf2 {[%clk
0:00:09.7]} 48... Nxe4+ {[%clk 0:00:16.6]} 49. dxe4 {[%clk 0:00:10.2]} 49... Rg4
{[%clk 0:00:17.1]} 50. Nd2 {[%clk 0:00:08.2]} 50... Rg8 {[%clk 0:00:12.5]} 51.
Kf3 {[%clk 0:00:06.9]} 51... Rd8 {[%clk 0:00:12.5]} 52. Ke3 {[%clk 0:00:06.9]}
52... Kg6 {[%clk 0:00:13.1]} 53. c5 {[%clk 0:00:07]} 53... Kf7 {[%clk
0:00:13.6]} 54. Nc4 {[%clk 0:00:06.4]} 54... Ke6 {[%clk 0:00:14.1]} 55. b4
{[%clk 0:00:06.2]} 55... Rg8 {[%clk 0:00:13.8]} 56. c6 {[%clk 0:00:04.2]} 56...
Rxg2 {[%clk 0:00:13.1]} 57. b5 {[%clk 0:00:04.6]} 57... Rc2 {[%clk 0:00:12.5]}
58. Kd4 {[%clk 0:00:04.7]} 58... Ra2 {[%clk 0:00:11.2]} 59. a5 {[%clk 0:00:05]}
59... Ke7 {[%clk 0:00:09.6]} 60. Kc5 {[%clk 0:00:05.4]} 60... Kd8 {[%clk
0:00:09.8]} 61. Kb6 {[%clk 0:00:04.2]} 61... Rc2 {[%clk 0:00:09.6]} 62. c7+
{[%clk 0:00:03.6]} 62... Kd7 {[%clk 0:00:09.5]} 63. a6 {[%clk 0:00:01.4]} 63...
Rxc4 {[%clk 0:00:09.7]} 64. a7 {[%clk 0:00:02.3]} 64... Ra4 {[%clk 0:00:10]} 65.
Kb7 {[%clk 0:00:03]} 65... Ra5 {[%clk 0:00:07.5]} 66. c8=Q+ {[%clk 0:00:02.9]}
66... Kd6 {[%clk 0:00:07.4]} 67. Qc7+ {[%clk 0:00:03.4]} 67... Ke6 {[%clk
0:00:07.6]} 68. Qxa5 {[%clk 0:00:04.3]} 68... Ke5 {[%clk 0:00:08]} 69. Qa6
{[%clk 0:00:05]} 69... Kxe4 {[%clk 0:00:08.9]} 70. Qc6+ {[%clk 0:00:05.9]} 70...
Ke5 {[%clk 0:00:09.1]} 71. Qc7+ {[%clk 0:00:06.8]} 71... Kf5 {[%clk 0:00:09.3]}
72. Kb8 {[%clk 0:00:07.7]} 72... Kg5 {[%clk 0:00:10.2]} 73. b6 {[%clk
0:00:08.6]} 73... f5 {[%clk 0:00:11.1]} 74. b7 {[%clk 0:00:09.5]} 74... Kg4
{[%clk 0:00:11.8]} 75. Qc8 {[%clk 0:00:10.4]} 75... Kg5 {[%clk 0:00:11.7]} 76.
Qc1+ {[%clk 0:00:11.3]} 76... f4 {[%clk 0:00:12.4]} 77. Qf1 {[%clk 0:00:11.9]}
77... Kg4 {[%clk 0:00:13.3]} 78. Ka8 {[%clk 0:00:12.3]} 78... f3 {[%clk
0:00:14.2]} 79. b8=Q {[%clk 0:00:13.2]} 79... Kh4 {[%clk 0:00:14.2]} 80. Kb7
{[%clk 0:00:14.1]} 80... Kg5 {[%clk 0:00:14.6]} 81. a8=Q {[%clk 0:00:15]} 81...
Kh6 {[%clk 0:00:15.5]} 82. Ka7 {[%clk 0:00:15.4]} 82... Kg5 {[%clk 0:00:16.4]}
83. Qg3+ {[%clk 0:00:15.6]} 83... Kh5 {[%clk 0:00:16.7]} 84. Qh8# {[%clk
0:00:16.2]} 1-0